bitfinex/quotes_ETHUSD_20250411
["timestamp","ask_amount","ask_price","bid_price","bid_amount"]
[1744378513257,0.7939,1565.9,1565.1,6.86750677]
[1744378513258,12.77443,1565.7,1565.1,6.86750677]
[1744378513500,6.38652,1565.8,1565.3,4.42353843]
[1744378513658,6.38492,1566.2,1565.7,6.38673]
[1744378513858,6.38634,1565.9,1565.6,4.97353843]
[1744378514174,0.05,1566.4,1566.0,3.0]
[1744378514366,6.43441,1566.4,1566.0,3.0]
[1744378514692,6.38469,1566.3,1566.0,3.0]
[1744378514889,0.005,1566.2,1566.0,3.0]
[1744378515394,0.005,1566.2,1566.1,9.93528]
[1744378515597,0.005,1566.2,1566.1,65.97801656]
[1744378515766,0.05,1566.4,1566.3,6.38447]
[1744378515968,0.05,1566.4,1566.3,21.81580843]
[1744378516295,0.05,1566.4,1566.3,0.7588]
[1744378516589,0.05,1566.4,1566.1,4.42353843]
[1744378516757,0.05,1566.4,1565.8,11.56254843]
[1744378516973,6.43427,1566.4,1565.9,6.38608]
[1744378517173,0.05,1566.4,1566.1,4.42353843]
[1744378517409,0.05,1566.4,1566.3,7.73407]
[1744378517597,0.05,1566.4,1566.3,10.73407]
[1744378517797,0.005,1567.1,1566.4,4.3408]
[1744378517977,0.005,1567.1,1566.9,12.14635843]
[1744378518172,0.005,1567.1,1566.7,10.80634843]
[1744378518475,0.005,1567.1,1566.6,0.7908]
[1744378518672,0.005,1567.1,1566.7,4.42353843]
[1744378518912,0.005,1567.1,1566.6,0.7908]
[1744378519209,0.005,1567.1,1566.6,7.17382]
[1744378519387,0.005,1567.1,1566.7,6.3828]
[1744378519584,0.005,1567.1,1566.9,6.38202]
[1744378519893,0.7915,1567.1,1566.2,0.55]
[1744378520092,0.005,1567.1,1566.7,6.38267]
[1744378520309,0.005,1567.1,1566.6,7.18554]
[1744378520470,0.005,1567.1,1566.7,6.38259]
[1744378520676,0.005,1567.1,1566.9,7.69332]
[1744378520876,0.005,1567.1,1566.9,7.26001994]
[1744378521114,0.005,1567.1,1566.9,8.57133709]
[1744378521273,0.005,1567.1,1566.9,8.50754099]
[1744378521676,0.005,1567.1,1566.9,9.05754099]
[1744378521889,0.005,1567.1,1566.9,8.50754099]
[1744378522176,0.005,1567.1,1566.9,7.20711517]
[1744378522507,0.005,1567.1,1567.0,6.93162]
[1744378522707,0.005,1567.1,1567.0,6.44540916]
[1744378522914,0.005,1567.1,1567.0,6.93162]
[1744378523120,0.005,1567.1,1567.0,6.44540858]
[1744378523310,0.005,1567.1,1567.0,8.24663528]
[1744378523488,0.005,1567.1,1567.0,6.99540858]
[1744378523675,0.005,1567.1,1567.0,6.38162]
[1744378524013,6.38179,1567.0,1566.5,6.87227027]
[1744378524211,6.38165,1567.0,1566.6,6.38319]
[1744378524378,0.005,1567.1,1566.7,6.44665541]
[1744378524592,0.4636811,1567.1,1567.0,6.38162]
[1744378524846,0.4636811,1567.1,1567.0,6.93162]
[1744378525023,0.1086421,1567.2,1567.1,6.38121]
[1744378525224,0.1086421,1567.2,1567.1,7.78549809]
[1744378525427,0.1086421,1567.2,1567.1,9.13842181]
[1744378525725,10.68,1568.3,1567.3,6.38039]
[1744378525726,6.37712,1568.2,1567.3,6.38039]
[1744378525924,7.17635,1568.3,1567.9,6.37773]
[1744378526227,0.06404342,1568.2,1567.6,6.37911]
[1744378526397,6.37857,1567.8,1567.3,6.3801]
[1744378526599,6.38121,1567.1,1567.0,0.91251881]
[1744378526898,0.7822,1567.2,1566.6,4.42353843]
[1744378527130,0.7822,1567.2,1566.6,6.38325]
[1744378527432,0.7822,1567.2,1566.6,6.38287]
[1744378527631,0.06404342,1567.5,1566.7,0.55]
[1744378527632,6.37996,1567.5,1566.7,0.55]
[1744378527845,7.27299342,1567.7,1566.9,4.42353843]
[1744378528058,7.27299342,1567.7,1567.1,6.38121]
[1744378528059,0.83,1567.7,1567.1,6.38121]
[1744378528261,0.83,1568.0,1567.7,6.37852]
[1744378528474,0.83,1568.2,1567.9,6.37775]
[1744378528764,0.4472144,1568.4,1568.0,0.06376632]
[1744378528968,6.37669,1568.3,1567.8,6.37824]
[1744378529138,0.4472144,1568.4,1568.0,6.37747]
[1744378529323,0.4472144,1568.4,1567.9,7.015694]
[1744378529324,6.37695,1568.2,1567.9,0.637824]
[1744378529530,6.37695,1568.2,1567.6,6.37899]
[1744378529531,6.37727,1568.1,1567.6,6.37899]
[1744378529858,6.37675,1568.2,1567.7,7.16913]
[1744378530073,0.4472144,1568.4,1567.7,7.16913]
[1744378530228,6.8231544,1568.4,1567.7,1.2721425]
[1744378530426,0.4472144,1568.4,1567.7,7.6508925]
[1744378530657,0.7525,1569.1,1568.4,7.15062]
[1744378530857,0.7525,1569.1,1568.6,6.37478]
[1744378531055,0.7525,1569.1,1568.1,5.21483843]
[1744378531364,0.7578,1568.8,1568.6,6.37485]
[1744378531768,0.8256,1569.3,1568.7,6.37448]
[1744378532067,0.8256,1569.3,1568.5,6.37521]
[1744378532068,6.37293,1569.2,1568.5,6.37521]
[1744378532236,1.550368,1569.3,1568.7,6.37436]
[1744378532237,0.8256,1569.3,1568.7,6.37436]
[1744378532434,0.8256,1569.3,1568.7,6.37464]
[1744378532636,0.7841,1568.9,1568.3,6.37618]
[1744378532867,0.7841,1568.9,1567.9,0.7544]
[1744378533141,6.37667,1568.3,1567.8,6.37835]
[1744378533349,0.7512,1568.4,1567.8,7.5631541]
[1744378533643,7.12565,1568.8,1567.9,6.37792]
[1744378533972,6.37647,1568.3,1567.9,6.37778]
[1744378534143,0.7761,1568.4,1568.0,6.37724]
[1744378534344,7.15219,1568.4,1567.9,6.37791]
[1744378534664,6.37691,1568.2,1567.8,0.715555]
[1744378534871,0.7837,1568.3,1567.5,6.37958]
[1744378535070,6.37673,1568.2,1567.5,12.75897]
[1744378535270,0.7837,1568.3,1567.5,0.47517867]
[1744378535432,0.7837,1568.3,1567.5,12.75898]
[1744378535433,6.378,1567.9,1567.5,12.75898]
[1744378535639,6.37775,1568.0,1567.6,6.37897]
[1744378535840,6.37797,1567.9,1567.5,8.09764184]
[1744378536037,6.37797,1567.9,1567.5,14.47705184]
[1744378536239,6.37775,1568.0,1567.6,6.37917]
[1744378536566,6.37775,1568.0,1567.4,4.42353843]
[1744378536567,6.37755,1568.0,1567.4,4.42353843]
[1744378536871,0.8299,1568.1,1567.6,6.37911]
[1744378537070,6.37814,1567.9,1567.5,3.0]
[1744378537244,6.37881,1567.7,1567.3,6.38022]
[1744378537444,11.117,1567.9,1567.5,6.3793]
[1744378537749,17.49513,1567.9,1567.5,6.37956]
[1744378537964,7.20715,1568.1,1567.6,6.44259088]
[1744378538297,0.7849,1568.8,1567.8,6.37836]
[1744378538475,0.7849,1568.8,1568.1,6.92714]
[1744378538662,0.7849,1568.8,1568.4,3.0]
[1744378538972,7.15935,1568.8,1568.4,9.37592]
[1744378539142,0.7849,1568.8,1568.7,6.3747]
[1744378539342,0.7584,1569.1,1568.9,6.37364]
[1744378539748,0.7584,1569.1,1568.8,12.74837]
[1744378539943,6.37419,1568.9,1568.5,6.37538]
[1744378540148,6.37452,1568.8,1568.3,6.3763]
[1744378540345,6.37403,1568.9,1568.5,6.37536]
[1744378540566,6.37657,1568.3,1567.9,7.16904]
[1744378540766,12.75324,1568.3,1567.9,6.37792]
[1744378540976,6.37657,1568.3,1567.9,6.37774]
[1744378541150,0.8005,1568.6,1567.9,1.08012784]
[1744378541355,6.37646,1568.3,1567.9,10.80135843]
[1744378541689,6.37623,1568.4,1568.0,6.3773]
[1744378541690,12.75238,1568.4,1568.0,6.3773]
[1744378541845,0.8005,1568.6,1568.1,6.37711]
[1744378542061,0.8005,1568.6,1568.4,6.37579]
[1744378542394,6.37429,1568.8,1568.1,6.37677]
[1744378542594,7.012199,1568.7,1568.3,6.37601]
[1744378542768,0.8164,1568.9,1567.9,3.8131]
[1744378542968,6.37564,1568.5,1568.0,6.37755]
[1744378543168,0.792,1568.5,1568.3,6.37617]
[1744378543471,6.37558,1568.5,1568.0,6.37726]
[1744378543670,6.37597,1568.4,1567.9,6.37777]
[1744378544010,0.8066,1568.3,1567.8,4.89442539]
[1744378544166,0.8066,1568.5,1568.1,6.37684]
[1744378544371,0.8066,1568.5,1568.2,6.37651]
[1744378544574,7.17042,1569.2,1568.4,6.37592]
[1744378544911,0.7977,1569.2,1568.8,6.37411]
[1744378545107,7.887697,1569.2,1568.7,6.37452]
[1744378545314,7.887697,1569.2,1568.5,3.0]
[1744378545315,6.37361,1569.0,1568.5,12.75053]
[1744378545461,6.3741,1568.9,1568.5,6.37514]
[1744378545666,6.3741,1568.9,1568.4,6.37588]
[1744378545667,6.37437,1568.8,1568.4,6.37588]
[1744378545973,7.728867,1568.8,1568.4,12.75155]
[1744378546177,0.716997,1569.2,1568.5,3.0]
[1744378546384,0.8207,1569.4,1568.9,6.37389]
[1744378546592,0.8207,1569.4,1569.2,6.3725]
[1744378546795,0.05,1569.4,1569.3,9.43597207]
[1744378546997,1e-05,1569.4,1569.3,9.43597207]
[1744378547378,1e-05,1569.4,1569.3,9.84493922]
[1744378547587,1e-05,1569.4,1569.3,12.88898415]
[1744378547765,1e-05,1569.4,1569.3,23.93828314]
[1744378548100,0.3972144,1570.0,1569.9,6.36983]
[1744378548305,7.11828,1571.1,1570.4,6.3678]
[1744378548475,6.36553,1571.0,1570.4,6.3678]
[1744378548681,0.18064731,1570.5,1570.4,6.4310781]
[1744378549004,0.3972144,1571.5,1570.7,6.91658]
[1744378549202,0.3972144,1571.5,1570.8,0.06363399]
[1744378549500,0.7713,1571.1,1570.6,6.36671]
[1744378549720,7.13432,1571.6,1570.6,6.36699]
[1744378549920,7.14057,1571.1,1570.6,12.7337]
[1744378550083,8.491083,1571.1,1570.5,6.36738]
[1744378550284,8.490983,1571.1,1570.5,6.43102093]
[1744378550488,6.36571,1571.0,1570.5,6.36712]
[1744378550718,1.350513,1571.1,1570.3,0.4678506]
[1744378550918,1.350513,1571.1,1569.9,3.0]
[1744378550919,6.36717,1570.6,1569.9,3.0]
[1744378551132,12.6126,1571.0,1569.9,3.0]
[1744378551133,12.6126,1571.0,1570.1,7.37928669]
[1744378551299,0.7866,1571.0,1570.2,6.36842]
[1744378551489,6.36675,1570.7,1570.2,12.73676]
[1744378551796,6.36636,1570.8,1570.3,0.06366905]
[1744378551797,6.36618,1570.8,1570.3,0.06366905]
[1744378552004,5.17168669,1570.5,1569.4,6.1658417]
[1744378552310,0.7924,1569.7,1569.4,6.1658417]
[1744378552509,7.16327,1569.7,1569.4,6.1658417]
[1744378552820,7.16707,1570.0,1569.4,6.1658417]
[1744378553024,7.16707,1570.0,1569.5,0.61658417]
[1744378553209,7.16707,1570.0,1569.4,12.5374217]
[1744378553414,6.37003,1569.9,1569.4,6.1658417]
[1744378553609,6.37082,1569.7,1569.4,6.1658417]
[1744378553923,6.36986,1569.9,1569.4,6.37169]
[1744378554122,0.7974,1570.0,1569.6,6.37101]
[1744378554293,0.7974,1570.0,1569.7,0.06369517]
[1744378554699,0.7974,1570.0,1569.8,6.37021]
[1744378554919,0.7974,1570.0,1569.7,6.43397517]
[1744378555223,0.005,1570.0,1569.8,6.37023]
[1744378555523,0.005,1570.0,1569.9,6.43351148]
[1744378555837,0.005,1570.0,1569.9,6.36983]
[1744378556017,0.005,1570.0,1569.8,6.37023]
[1744378556190,0.005,1570.0,1569.7,6.37057]
[1744378556529,0.005,1570.0,1569.7,6.37038]
[1744378556693,0.005,1570.0,1569.9,6.36983]
[1744378557241,0.005,1570.0,1569.8,6.37]
[1744378557537,0.005,1570.0,1569.7,6.37063]
[1744378557834,0.005,1570.0,1569.6,6.37101]
[1744378557835,6.3709,1569.7,1569.3,6.37221]
[1744378558035,12.74082,1569.8,1569.4,6.37184]
[1744378558237,6.37095,1569.7,1569.2,6.37264]
[1744378558410,6.37045,1569.8,1569.3,6.37205]
[1744378558607,6.37023,1569.8,1569.3,6.43575838]
[1744378558810,6.37159,1569.5,1569.1,6.37301]
[1744378559012,6.3705,1569.8,1569.2,6.37243]
[1744378559324,6.37118,1569.6,1569.1,8.942923]
[1744378559539,6.37186,1569.4,1569.0,6.37341]
[1744378559738,12.74397,1569.4,1569.0,6.37341]
[1744378559915,12.74397,1569.4,1568.5,12.154]
[1744378559916,7.13055,1569.4,1568.5,6.3755]
[1744378560121,6.37411,1568.9,1568.5,6.3755]
[1744378560318,12.74824,1568.9,1568.5,6.3755]
[1744378560526,7.12528,1568.8,1568.3,6.37614]
[1744378560729,0.7508,1568.8,1568.1,0.835]
[1744378560916,7.1251,1568.8,1568.3,6.37627]
[1744378561118,13.52278,1569.1,1568.7,6.3747]
[1744378561444,0.7763,1569.1,1568.6,0.46877686]
[1744378561612,6.37109,1569.6,1569.1,6.37292]
[1744378561814,0.7763,1569.8,1568.8,9.37414]
[1744378562021,0.7763,1569.8,1568.5,6.37542]
[1744378562022,6.37371,1569.0,1568.5,6.37542]
[1744378562239,6.37488,1568.7,1568.1,6.42712]
[1744378562449,7.19672,1568.9,1568.1,0.05]
[1744378562649,6.37389,1568.9,1568.1,0.05]
[1744378562928,18.52953,1569.0,1568.1,0.05]
[1744378562929,7.13013,1568.2,1568.1,0.05]
[1744378563127,7.8661092,1568.2,1568.1,0.05]
[1744378563565,0.8072,1568.1,1567.2,6.1658417]
[1744378563721,7.18643,1567.6,1567.2,6.1658417]
[1744378563927,0.8072,1567.6,1567.2,6.1658417]
[1744378564168,6.38039,1567.3,1567.2,6.1658417]
[1744378564320,12.76029,1567.4,1567.2,6.1658417]
[1744378564522,0.8072,1567.6,1567.2,6.1658417]
[1744378564731,6.38039,1567.3,1567.2,6.1658417]
[1744378564964,6.37958,1567.5,1567.1,0.05]
[1744378565157,6.3808,1567.2,1567.1,0.05]
[1744378565328,7.2098,1567.2,1567.1,0.05]
[1744378565655,7.2098,1567.2,1566.8,6.1658417]
[1744378565656,7.21102,1566.9,1566.8,6.1658417]
[1744378565859,0.829,1566.9,1566.5,14.02762953]
[1744378566034,0.8329,1567.2,1566.6,0.06383369]
[1744378566223,0.8329,1567.2,1566.6,0.06382586]
[1744378566423,0.8329,1567.2,1566.7,6.38281]
[1744378566756,7.18949,1567.5,1566.6,6.38323]
[1744378566955,7.18949,1567.5,1566.8,6.38226]
[1744378566956,6.38097,1567.2,1566.8,6.38226]
[1744378567145,6.38048,1567.3,1566.5,16.98000075]
[1744378567346,0.718949,1567.4,1566.7,12.76528]
[1744378567546,6.3813,1567.1,1566.6,12.76623]
[1744378567733,6.3808,1567.2,1566.7,6.44647127]
[1744378567930,6.37999,1567.4,1566.9,6.3818]
[1744378568129,6.38045,1567.3,1566.8,6.38241]
[1744378568329,6.38208,1566.9,1566.5,7.64425953]
[1744378568550,6.38039,1567.3,1566.8,6.3821]
[1744378568857,6.38039,1567.3,1566.8,12.76433]
[1744378569061,7.1895,1567.5,1566.6,6.38286]
[1744378569261,6.38225,1566.9,1566.3,3.8102]
[1744378569462,6.38225,1566.9,1566.5,6.3836]
[1744378569628,7.18775,1567.7,1566.6,0.06382891]
[1744378569829,0.8314,1568.6,1567.4,3.0]
[1744378570139,0.8314,1568.6,1567.6,6.37896]
[1744378570344,6.37676,1568.2,1567.7,6.37838]
[1744378570553,6.37654,1568.3,1567.8,6.37815]
[1744378570743,6.37834,1567.9,1567.5,6.37956]
[1744378570942,0.7629,1568.1,1567.2,7.139]
[1744378571141,7.14033,1568.1,1567.3,6.38039]
[1744378571342,5.14218669,1568.1,1566.9,7.13925]
[1744378571660,6.37755,1568.0,1567.3,6.38022]
[1744378571863,6.37841,1567.8,1567.4,6.37995]
[1744378572169,6.37799,1567.9,1567.2,12.76138]
[1744378572370,7.14009,1568.1,1567.7,6.37859]
[1744378572670,6.37853,1567.8,1567.3,6.38011]
[1744378572868,7.14006,1568.1,1567.2,0.06379109]
[1744378572869,6.37927,1567.6,1567.2,0.06379109]
[1744378573067,12.75649,1567.9,1567.5,6.37938]
[1744378573243,0.7629,1568.1,1567.2,1.22297911]
[1744378573437,6.37784,1568.0,1567.6,6.37909]
[1744378573761,12.75561,1568.0,1567.6,6.37909]
[1744378573935,0.7629,1568.1,1567.5,6.37951]
[1744378574140,0.7629,1568.1,1567.5,0.637951]
[1744378574344,6.37885,1567.7,1567.3,6.38025]
[1744378574542,12.75868,1567.6,1567.2,7.60358911]
[1744378574771,6.37918,1567.6,1567.2,7.60358911]
[1744378574943,6.37811,1567.9,1567.5,6.37944]
[1744378575277,6.37843,1567.8,1567.4,6.37998]
[1744378575570,7.14406,1568.4,1567.5,11.51451669]
[1744378575771,0.768,1568.4,1567.8,6.378]
[1744378575970,0.768,1568.8,1568.2,6.37673]
[1744378576171,0.33265625,1569.0,1568.9,6.37389]
[1744378576359,0.05,1569.4,1568.9,6.37389]
[1744378576561,1e-05,1569.4,1569.3,9.37226]
[1744378576861,8.89956553,1569.9,1569.7,6.37064]
[1744378577058,8.89956553,1569.9,1569.3,26.77285497]
[1744378577059,8.89956553,1569.9,1569.5,6.37128]
[1744378577260,13.86463097,1569.8,1569.5,0.637128]
[1744378577457,6.37121,1569.6,1569.1,6.37281]
[1744378577761,6.37256,1569.3,1568.8,9.37427]
[1744378577966,6.37302,1569.2,1568.7,7.16502]
[1744378578177,7.13059,1569.2,1568.8,0.06373427]
[1744378578496,6.37148,1569.5,1568.7,6.37453]
[1744378578643,6.37226,1569.3,1568.4,6.37565]
[1744378578844,6.37287,1569.2,1568.0,11.52271669]
[1744378579057,7.16264,1569.4,1568.4,6.37592]
[1744378579260,7.16234,1569.4,1568.4,3.0]
[1744378579483,0.7904,1569.4,1568.7,3.0]
[1744378579701,7.1623,1569.4,1568.8,6.43781697]
[1744378579845,6.37245,1569.3,1568.8,7.3178717]
[1744378580049,0.7904,1569.4,1568.6,11.58018669]
[1744378580050,6.37308,1569.1,1568.6,11.58018669]
[1744378580249,12.74501,1569.3,1568.8,6.37408]
[1744378580482,6.37244,1569.3,1568.7,6.37469]
[1744378580790,6.37244,1569.3,1568.6,5.20548669]
[1744378580791,6.37387,1569.0,1568.6,6.37509]
[1744378580997,49.716,1569.7,1568.9,0.8225]
[1744378580998,6.37124,1569.6,1568.9,0.8225]
[1744378581303,0.7936,1569.7,1569.4,6.3718]
[1744378581456,6.37484,1569.9,1569.4,6.3718]
[1744378581457,0.005,1569.9,1569.8,6.37023]
[1744378581953,0.005,1569.9,1569.5,13.37956]
[1744378582154,0.005,1569.9,1569.6,6.37085]
[1744378582578,0.005,1569.9,1569.5,7.00862]
[1744378582780,0.005,1569.9,1569.5,12.74268]
[1744378582942,0.005,1569.9,1569.5,6.37122]
[1744378583142,0.005,1569.9,1569.3,7.19472]
[1744378583347,0.005,1569.9,1569.4,0.06369996]
[1744378583348,7.17093,1569.9,1569.4,0.06369996]
[1744378583580,0.005,1569.9,1569.6,6.37071]
[1744378583798,0.005,1569.9,1569.7,6.3706]
[1744378583962,0.005,1569.9,1569.6,6.37071]
[1744378583963,0.005,1569.9,1569.6,7.008071]
[1744378584282,0.005,1569.9,1569.7,6.43402785]
[1744378584450,0.005,1569.9,1569.7,10.74961669]
[1744378584655,0.005,1569.9,1569.8,6.43391227]
[1744378584876,0.005,1569.9,1569.8,8.0885829]
[1744378585076,0.005,1569.9,1569.5,0.8023]
[1744378585267,6.37029,1569.8,1569.3,6.37224]
[1744378585448,0.8089,1569.9,1569.6,6.37086]
[1744378585672,6.37037,1569.8,1569.4,6.37161]
[1744378585981,6.37097,1569.7,1568.9,24.01356669]
[1744378586180,0.005,1569.9,1569.4,6.3718]
[1744378586383,6.37023,1569.8,1569.2,4.37928669]
[1744378586570,6.37186,1569.4,1569.1,0.7634]
[1744378586751,6.37267,1569.2,1569.0,4.50328669]
[1744378587081,6.37023,1569.8,1569.1,6.37308]
[1744378587082,0.7852,1569.8,1569.1,6.37308]
[1744378587287,0.005,1569.9,1569.5,0.8315]
[1744378587494,6.37043,1569.8,1569.4,0.06370042]
[1744378587657,6.37043,1569.8,1569.3,6.37203]
[1744378587658,12.74084,1569.8,1569.3,6.37203]
[1744378587864,6.37064,1569.7,1569.2,0.8315]
[1744378588073,2.083284,1569.8,1569.0,0.124]
[1744378588264,6.37187,1569.4,1569.0,6.56105626]
[1744378588459,19.67094,1569.8,1569.0,0.124]
[1744378588664,6.37308,1569.1,1569.0,0.124]
[1744378588856,6.37187,1569.4,1569.0,0.124]
[1744378589056,6.37187,1569.4,1569.0,6.4973]
[1744378589271,12.492,1569.8,1569.0,6.4973]
[1744378589272,7.20289,1569.9,1569.1,0.06372237]
[1744378589471,0.8329,1569.9,1569.0,5.90861669]
[1744378589672,0.7586,1569.6,1569.0,0.124]
[1744378589872,6.37538,1568.6,1568.2,6.37656]
[1744378590091,6.37454,1568.8,1568.1,0.8079]
[1744378590391,6.37592,1568.4,1567.8,0.8104]
[1744378590578,7.12729,1568.6,1567.8,2.00970858]
[1744378590777,6.37758,1568.0,1567.6,18.87117]
[1744378590963,0.7518,1568.6,1567.6,18.87114]
[1744378591160,0.7518,1568.6,1567.6,12.492]
[1744378591565,7.12693,1568.6,1567.9,6.37782]
[1744378591761,7.12693,1568.6,1567.6,12.492]
[1744378591762,6.37598,1568.4,1568.0,6.44125707]
[1744378591961,0.7518,1568.6,1568.0,7.02164571]
[1744378592183,0.7518,1568.6,1568.1,6.44067055]
[1744378592388,0.7518,1568.6,1567.6,12.492]
[1744378592590,0.7518,1568.6,1568.1,6.37699]
[1744378592793,6.37662,1568.3,1567.9,6.37773]
[1744378592997,0.7518,1568.6,1567.8,6.37833]
[1744378592998,0.7518,1568.6,1567.8,6.37835]
[1744378593162,0.7518,1568.6,1567.1,7.2733256]
[1744378593163,0.8152,1568.0,1567.1,0.05]
[1744378593365,6.38034,1567.4,1567.1,0.05]
[1744378593693,0.8152,1568.3,1567.3,0.7738]
[1744378593870,0.8152,1568.3,1567.8,6.37833]
[1744378594073,13.5681,1568.3,1567.9,6.3778]
[1744378594276,0.8152,1568.3,1567.3,0.7738]
[1744378594470,0.8152,1568.3,1567.3,2.10068]
[1744378594793,0.8152,1568.3,1567.7,6.37847]
[1744378594992,6.37717,1568.1,1567.6,6.37888]
[1744378595195,0.8152,1568.3,1567.4,6.37999]
[1744378595196,6.37884,1567.7,1567.4,6.37999]
[1744378595403,6.3784,1567.8,1567.4,6.37979]
[1744378595582,6.37797,1567.9,1567.6,6.37915]
[1744378595895,6.37713,1568.2,1567.3,6.38026]
[1744378596081,6.37795,1567.9,1567.1,0.05]
[1744378596295,6.37961,1567.5,1567.1,12.81222]
[1744378596519,6.37961,1567.5,1567.1,6.43102]
[1744378596667,7.18861,1567.6,1567.2,6.3808]
[1744378596864,0.7824,1567.9,1567.1,6.43118]
[1744378597111,6.37976,1567.5,1567.1,6.43101]
[1744378597417,6.38052,1567.3,1567.1,0.05]
[1744378597563,6.3808,1567.2,1567.1,0.05]
[1744378597769,6.38013,1567.4,1567.1,0.05]
[1744378598072,0.7939,1567.9,1567.6,6.3788]
[1744378598317,6.3788,1567.7,1567.3,6.38034]
[1744378598602,0.7939,1567.9,1567.3,6.38034]
[1744378598603,6.37857,1567.8,1567.4,6.37975]
[1744378598802,0.7939,1567.9,1567.5,0.0637961]
[1744378599111,0.7939,1567.9,1567.7,6.37851]
[1744378599297,0.7939,1567.9,1567.1,7.074186]
[1744378599496,1.511045,1567.9,1567.1,0.693156]
[1744378599712,0.7939,1567.9,1567.2,6.38072]
[1744378599917,6.37886,1567.7,1567.3,6.38019]
[1744378600115,0.7939,1567.9,1567.1,0.693156]
[1744378600316,6.37904,1567.7,1567.3,6.38025]
[1744378600489,6.37986,1567.5,1567.1,6.43086]
[1744378600692,6.38012,1567.4,1567.1,0.05]
[1744378600920,6.37962,1567.5,1567.1,6.4312]
[1744378601099,6.37883,1567.7,1567.2,6.44434743]
[1744378601318,6.37936,1567.6,1567.2,13.47445217]
[1744378601513,0.7939,1567.9,1567.2,0.64943474]
[1744378601734,7.17199,1567.9,1567.5,6.3795]
[1744378601906,6.3784,1567.8,1567.5,6.3794]
[1744378602106,0.7939,1567.9,1567.6,6.37903]
[1744378602314,0.7939,1567.9,1567.6,6.37902]
[1744378602504,0.7939,1567.9,1567.7,6.37836]
[1744378602710,0.8119,1568.2,1567.7,0.06378465]
[1744378602910,6.37771,1568.0,1567.6,6.37912]
[1744378603148,6.37851,1567.8,1567.4,6.37978]
[1744378603350,6.37714,1568.1,1567.5,0.06379085]
[1744378603554,0.8119,1568.2,1567.5,0.06379085]
[1744378603555,0.8119,1568.2,1568.0,6.37743]
[1744378603701,0.8052,1568.5,1567.8,6.37833]
[1744378603905,0.8052,1568.3,1567.2,6.3808]
[1744378604154,6.37975,1567.5,1567.1,0.8811]
[1744378604448,6.37931,1567.6,1567.2,6.38061]
[1744378604660,6.37976,1567.5,1567.1,6.43115]
[1744378604822,7.12897,1567.7,1567.3,6.38025]
[1744378605018,0.7502,1567.7,1567.6,6.37917]
[1744378605342,6.37606,1568.4,1567.6,6.37917]
[1744378605343,6.37443,1568.8,1568.3,6.3762]
[1744378605648,7.17493,1568.9,1568.2,6.37673]
[1744378605853,6.37492,1568.7,1568.2,7.014213]
[1744378606019,6.37492,1568.7,1568.0,6.37747]
[1744378606020,6.37621,1568.4,1568.0,6.37747]
[1744378606206,12.75403,1568.2,1567.8,6.37821]
[1744378606402,0.7735,1568.3,1567.7,7.17631]
[1744378606603,6.37845,1567.8,1567.4,7.15194]
[1744378606907,6.37761,1568.0,1567.6,6.37886]
[1744378607108,0.7735,1568.3,1567.7,6.37877]
[1744378607368,6.37841,1567.8,1567.4,6.37997]
[1744378607651,0.773,1567.8,1567.5,6.37958]
[1744378607846,6.37883,1567.7,1567.4,6.37985]
[1744378608016,0.773,1567.8,1567.5,6.37926]
[1744378608218,6.3784,1567.8,1567.3,6.38011]
[1744378608424,6.3804,1567.3,1567.1,0.05]
[1744378608738,0.8087,1567.8,1567.1,6.43108]
[1744378608901,6.3791,1567.7,1567.4,6.37987]
[1744378609105,0.8087,1567.8,1567.1,6.43119]
[1744378609319,6.37988,1567.5,1567.1,6.43102]
[1744378609518,6.37895,1567.7,1567.2,6.38077]
[1744378609816,6.37895,1567.7,1567.1,6.43118]
[1744378609817,6.38015,1567.4,1567.1,6.43118]
[1744378610138,12.76038,1567.4,1567.1,0.05]
[1744378610338,6.37877,1567.7,1567.2,6.38061]
[1744378610339,6.37935,1567.6,1567.2,6.38061]
[1744378610537,6.37877,1567.7,1567.1,0.05]
[1744378610538,6.38026,1567.4,1567.1,0.05]
[1744378610724,6.3808,1567.2,1567.1,0.05]
[1744378610928,6.37877,1567.7,1567.3,6.38009]
[1744378610929,6.37883,1567.7,1567.3,6.38009]
[1744378611242,0.8087,1567.8,1567.5,6.37941]
[1744378611426,7.15088,1568.2,1567.8,6.37805]
[1744378611629,6.37722,1568.1,1567.8,6.37805]
[1744378611941,6.37596,1568.4,1567.8,6.37805]
[1744378611942,6.37606,1568.4,1568.0,12.75465]
[1744378612108,0.789,1568.5,1568.1,6.37691]
[1744378612310,0.789,1568.5,1568.0,6.44125317]
[1744378612609,5.47875288,1568.8,1568.5,6.37534]
[1744378612822,6.37609,1568.4,1568.0,0.64412532]
[1744378613120,0.7805,1568.6,1567.7,6.37875]
[1744378613315,0.7805,1568.6,1567.7,3.06377826]
[1744378613527,4.69825288,1568.8,1567.7,3.06377826]
[1744378613528,4.69825288,1568.8,1568.3,6.37618]
[1744378613715,6.37499,1568.7,1568.3,6.37602]
[1744378613930,4.69825288,1568.8,1568.6,6.3749]
[1744378614135,4.69825288,1568.8,1568.3,6.37633]
[1744378614136,6.375,1568.7,1568.3,6.37633]
[1744378614315,1.10732529,1568.7,1568.0,0.7585]
[1744378614509,6.37543,1568.6,1568.2,6.37659]
[1744378614813,6.3757,1568.5,1568.3,0.06375634]
[1744378615014,6.37633,1568.3,1568.0,7.13589]